bitfinex/quotes_ETHUSD_20251012
["timestamp","ask_amount","ask_price","bid_price","bid_amount"]
[1760233627495,0.459,3741.8,3740.6,0.002]
[1760233627700,1.92,3741.4,3740.6,0.002]
[1760233627872,2.67282836,3741.4,3740.6,0.002]
[1760233628091,2.67266728,3741.6,3740.6,0.002]
[1760233628286,1.92,3741.1,3740.6,0.002]
[1760233628613,4.59329644,3740.7,3740.6,0.002]
[1760233628913,1.92,3740.7,3740.6,0.002]
[1760233629207,4.59329644,3740.7,3740.6,0.002]
[1760233629597,5.05229644,3740.7,3740.6,0.002]
[1760233631277,1.92,3740.7,3740.6,0.002]
[1760233631801,2.379,3740.7,3740.6,0.002]
[1760233632117,1.92,3740.7,3740.6,0.002]
[1760233632487,1.92,3740.7,3740.6,3.3089679]
[1760233632713,0.459,3741.8,3740.6,1.23425485]
[1760233632918,0.1336,3740.7,3740.6,0.002]
[1760233633210,1.92,3741.4,3740.7,0.6336]
[1760233633411,0.1336,3741.0,3740.7,3.30687445]
[1760233633831,0.1336,3741.0,3740.6,0.002]
[1760233634618,0.1336,3741.0,3740.9,0.6336]
[1760233634818,0.459,3741.9,3740.9,0.6336]
[1760233635009,0.1336,3741.2,3740.9,0.6336]
[1760233635399,0.1336,3741.2,3741.1,3.30661061]
[1760233635595,0.1336,3741.6,3741.2,0.6336]
[1760233635806,0.459,3742.2,3741.5,0.6336]
[1760233636127,0.459,3742.2,3741.0,0.6336]
[1760233636438,1.921,3741.4,3740.7,0.6336]
[1760233636639,0.1336,3741.2,3740.9,0.6336]
[1760233637439,0.001,3741.4,3740.9,0.1336]
[1760233637732,0.001,3741.4,3741.1,0.6336]
[1760233637895,0.001,3741.4,3741.0,0.6336]
[1760233639443,0.001,3741.4,3741.3,3.30646771]
[1760233639754,0.001,3741.4,3741.3,3.44006771]
[1760233640247,0.001,3741.4,3741.3,0.7672]
[1760233640599,0.001,3741.4,3741.3,3.44006771]
[1760233642955,0.001,3741.4,3741.3,0.7672]
[1760233643360,0.001,3741.4,3740.8,2.80681986]
[1760233643543,0.001,3741.4,3740.9,0.6336]
[1760233643744,1.92,3741.3,3740.8,0.1336]
[1760233643944,0.001,3741.4,3740.6,0.002]
[1760233643945,1.92,3740.8,3740.6,0.002]
[1760233644462,2.0536,3740.9,3740.6,0.002]
[1760233645270,0.1336,3740.9,3740.7,0.6336]
[1760233645421,0.1336,3740.9,3740.6,0.6356]
[1760233645825,0.1336,3740.9,3740.6,0.002]
[1760233646433,0.4456,3740.8,3740.6,0.002]
[1760233646634,2.67329644,3740.7,3740.6,0.002]
[1760233646875,3.11889644,3740.7,3740.6,0.002]
[1760233647474,1.92,3740.8,3740.6,0.002]
[1760233647768,0.1336,3740.8,3740.6,0.6356]
[1760233647931,0.1336,3740.8,3740.6,0.002]
[1760233648137,2.0536,3740.8,3740.6,0.002]
[1760233648372,0.1336,3740.8,3740.6,0.002]
[1760233649463,0.1336,3740.8,3740.7,0.6336]
[1760233649666,0.1336,3740.8,3740.6,0.6356]
[1760233649848,4.72684314,3740.8,3740.6,0.002]
[1760233650053,3.25724314,3740.8,3740.6,0.002]
[1760233650382,2.67329644,3740.7,3740.6,0.002]
[1760233650687,5.04369644,3740.7,3740.6,0.002]
[1760233650859,4.59329644,3740.7,3740.6,0.002]
[1760233651065,1.92,3740.7,3740.6,0.002]
[1760233651454,1.92,3740.7,3740.6,0.6356]
[1760233651656,1.92,3740.7,3740.6,3.3089679]
[1760233652000,1.92,3740.7,3740.6,3.97097507]
[1760233652655,1.92,3740.7,3740.6,3.3089679]
[1760233652857,1.92,3740.7,3740.6,0.6356]
[1760233653185,1.92,3740.7,3740.6,3.3089679]
[1760233653787,1.92,3740.7,3740.6,0.6356]
[1760233654006,0.1336,3741.0,3740.7,0.6336]
[1760233654152,0.001,3741.4,3741.0,0.6336]
[1760233654355,0.001,3741.4,3741.3,3.30646771]
[1760233654586,0.001,3741.4,3741.3,3.44006771]
[1760233654766,0.1346,3742.2,3741.7,3.30618198]
[1760233654767,0.001,3742.2,3741.7,3.30618198]
[1760233654975,0.001,3742.2,3741.7,3.43978198]
[1760233655180,0.001,3742.2,3742.1,3.3058963]
[1760233655396,0.001,3742.2,3742.1,0.6336]
[1760233655591,0.001,3742.2,3742.1,0.7672]
[1760233655988,0.4514,3742.2,3742.1,0.6336]
[1760233656421,0.001,3742.2,3742.1,0.6336]
[1760233656977,5.04362489,3742.2,3742.1,0.6336]
[1760233657483,1.921,3742.2,3742.1,0.6336]
[1760233657697,4.59322489,3742.2,3742.1,0.6336]
[1760233657884,5.04362489,3742.2,3742.1,0.6336]
[1760233658596,1.92,3742.1,3740.6,0.0571]
[1760233658906,0.4514,3742.2,3741.2,3.30651248]
[1760233658907,2.67237,3742.0,3741.2,3.30651248]
[1760233659495,2.67252572,3741.8,3741.2,0.6336]
[1760233659698,1.92,3741.8,3741.1,0.6336]
[1760233659897,1.92,3742.0,3741.1,0.6336]
[1760233660086,2.67325003,3742.2,3741.2,0.6336]
[1760233660288,1.92,3741.5,3740.7,2.67329131]
[1760233660493,1.92,3741.0,3740.6,0.002]
[1760233660815,2.67329644,3740.7,3740.6,0.002]
[1760233660978,12.6983904,3742.2,3740.6,0.002]
[1760233660979,0.33254805,3742.0,3740.6,0.002]
[1760233661302,1.92,3742.0,3741.0,3.30667598]
[1760233661478,1.92,3741.7,3741.0,0.6336]
[1760233661812,0.4504,3742.0,3740.9,0.6336]
[1760233662014,1.92,3741.4,3740.9,0.6336]
[1760233662201,1.92,3741.6,3740.6,0.002]
[1760233662512,1.92,3741.0,3740.6,0.002]
[1760233662714,0.4504,3741.6,3740.6,0.002]
[1760233662880,0.4504,3740.9,3740.6,0.002]
[1760233663214,1.92,3740.8,3740.6,0.002]
[1760233664297,5.06659644,3740.7,3740.6,0.002]
[1760233668410,2.67343937,3740.5,3740.4,0.002]
[1760233668720,2.67379679,3740.0,3739.9,0.002]
[1760233669018,1.92,3740.1,3739.9,0.002]
[1760233669183,0.1336,3740.0,3739.9,2.67585437]
[1760233669382,0.1336,3740.0,3739.9,0.002]
[1760233669884,0.1336,3740.0,3739.9,0.6356]
[1760233670086,0.1336,3740.0,3739.9,0.002]
[1760233670385,0.1336,3740.0,3739.9,0.6356]
[1760233670716,0.1336,3740.0,3739.9,0.002]
[1760233671153,4.72739679,3740.0,3739.9,0.002]
[1760233671455,5.20069679,3740.0,3739.9,0.002]
[1760233672741,2.5269,3740.0,3739.9,0.002]
[1760233673144,5.20069679,3740.0,3739.9,0.002]
[1760233674216,2.5269,3740.0,3739.9,0.002]
[1760233674451,2.0536,3740.0,3739.9,0.002]
[1760233674620,2.0536,3740.0,3739.9,0.6356]
[1760233674954,2.0536,3740.0,3739.9,3.30946828]
[1760233675324,2.0536,3740.0,3739.9,0.6356]
[1760233676722,2.5158,3740.0,3739.9,0.6356]
[1760233676916,2.0536,3740.0,3739.9,0.6356]
[1760233677831,2.0536,3740.0,3739.9,0.002]
[1760233678035,5.18959679,3740.0,3739.9,0.002]
[1760233678652,1.92,3740.0,3739.9,0.002]
[1760233680047,1.0,3928.9,3740.4,0.6336]
[1760233680048,0.1336,3740.6,3740.4,0.6336]
[1760233680375,0.1336,3740.6,3740.0,0.6336]
[1760233680545,0.1336,3740.6,3740.1,0.6336]
[1760233680961,0.1336,3740.6,3740.3,0.6336]
[1760233681268,0.1336,3740.8,3740.6,0.6336]
[1760233681468,0.1336,3741.4,3740.6,0.6336]
[1760233681766,0.1336,3741.4,3741.2,0.6336]
[1760233681972,2.67279037,3741.5,3741.2,0.6336]
[1760233682186,0.1336,3741.2,3740.8,0.6336]
[1760233682468,1.92,3740.2,3739.9,0.002]
[1760233682881,2.67379679,3740.0,3739.9,0.002]
[1760233683172,1.92,3740.0,3739.9,0.002]
[1760233683542,5.05599679,3740.0,3739.9,0.002]
[1760233684442,11.72618579,3740.0,3739.9,0.002]
[1760233684766,10.42598779,3740.0,3739.9,0.002]
[1760233684967,7.89742679,3740.0,3739.9,0.002]
[1760233685173,2.67464463,3738.9,3738.0,0.0631]
[1760233685373,1.92,3738.8,3738.0,3.22290026]
[1760233685571,1.92,3738.8,3737.4,0.0631]
[1760233685572,0.4622,3739.1,3737.6,0.0631]
[1760233685754,2.3822,3739.1,3738.3,2.67499299]
[1760233686134,1.92,3738.9,3738.3,0.6336]
[1760233686295,2.67396686,3739.8,3739.0,0.6336]
[1760233686587,0.6827,3739.9,3739.0,0.6336]
[1760233686775,1.92,3740.1,3739.0,0.6336]
[1760233686971,2.67401581,3739.7,3738.7,0.6336]
[1760233687270,1.92,3739.6,3739.0,0.6336]
[1760233687470,0.4622,3739.6,3738.3,0.002]
[1760233687677,1.92,3739.2,3738.5,2.67484579]
[1760233687844,4.59438488,3739.2,3738.5,0.6336]
[1760233688270,1.92,3739.2,3738.5,0.6336]
[1760233688470,0.4622,3739.6,3738.5,1.23216157]
[1760233688777,1.92,3738.6,3738.3,0.002]
[1760233689090,2.3822,3739.5,3738.3,0.002]
[1760233689292,17.58197953,3738.4,3738.3,0.002]
[1760233689450,4.59494115,3738.4,3738.3,0.002]
[1760233689647,1.92,3738.4,3738.3,0.002]
[1760233690361,1.92,3738.4,3738.3,0.6356]
[1760233691387,5.05714115,3738.4,3738.3,0.6356]
[1760233691541,1.92,3738.4,3738.3,0.6356]
[1760233692672,1.92,3738.4,3738.3,3.3106127]
[1760233692877,1.92,3738.4,3738.3,0.6356]
[1760233694062,1.92,3738.4,3738.3,3.3106127]
[1760233694374,0.1336,3738.9,3738.8,2.67465496]
[1760233694555,0.1336,3739.2,3738.9,0.6336]
[1760233694755,0.1336,3739.2,3738.7,0.6336]
[1760233694974,0.1336,3739.2,3738.8,2.67464891]
[1760233695146,0.1336,3739.2,3739.0,0.6336]
[1760233695547,0.1336,3739.2,3738.9,3.308178]
[1760233696188,0.1336,3739.2,3738.9,0.6336]
[1760233696683,0.1336,3739.2,3738.7,3.30830946]
[1760233696850,0.1336,3739.2,3738.9,0.6336]
[1760233697386,0.4622,3739.5,3738.3,0.002]
[1760233697683,0.1336,3739.0,3738.9,2.67458343]
[1760233697891,1.92,3740.1,3739.2,0.6336]
[1760233698091,4.59373072,3740.1,3739.2,0.6336]
[1760233698306,0.001,3740.2,3739.3,0.0631]
[1760233698452,0.001,3740.2,3739.7,0.6336]
[1760233698770,0.001,3740.2,3740.0,0.6336]
[1760233698943,0.001,3740.2,3740.1,3.3073253]
[1760233699555,0.001,3740.2,3740.1,3.75017819]
[1760233700084,0.4632,3740.2,3740.1,0.6336]
[1760233700249,5.05685381,3740.2,3740.1,0.6336]
[1760233700775,1.92,3739.6,3738.1,2.73818439]
[1760233700969,2.67436147,3739.3,3738.2,2.67508303]
[1760233701181,2.67438473,3739.2,3738.4,2.67487419]
[1760233701386,2.67445272,3739.1,3738.2,2.67502986]
[1760233701687,1.92,3739.1,3738.5,3.30846631]
[1760233702066,2.67430444,3739.3,3738.3,0.6356]
[1760233702264,1.92,3739.2,3738.5,0.6336]
[1760233702488,2.674374,3739.2,3738.5,0.6336]
[1760233702654,2.674374,3739.2,3738.4,2.67494115]
[1760233702854,2.674374,3739.2,3738.5,0.6336]
[1760233703292,1.92,3739.3,3738.3,0.002]
[1760233703500,2.67478136,3738.7,3738.3,0.002]
[1760233703815,0.4282,3739.1,3738.3,0.002]
[1760233703961,4.59494115,3738.4,3738.3,0.002]
[1760233704298,2.67522739,3738.0,3737.9,0.002]
[1760233704497,2.67551369,3737.6,3736.2,0.0651]
[1760233704792,4.59551369,3737.6,3736.3,3.30998375]
[1760233704954,5.02371369,3737.6,3736.2,0.0651]
[1760233705159,5.02371369,3737.6,3735.9,0.002]
[1760233705160,1.92,3736.8,3735.9,0.002]
[1760233705392,1.92,3736.0,3735.9,0.002]
[1760233705558,2.67665952,3736.0,3735.9,0.002]
[1760233705758,1.92,3736.4,3735.9,0.002]
[1760233705992,0.4282,3736.9,3735.9,0.002]
[1760233706184,2.67635293,3736.5,3735.9,0.002]
[1760233706382,0.4282,3736.9,3735.9,0.002]
[1760233706383,1.92,3736.3,3735.9,0.002]
[1760233706580,1.92,3736.8,3735.9,0.002]
[1760233706760,0.4282,3736.9,3735.9,0.002]
[1760233706761,1.92,3736.6,3735.9,0.002]
[1760233706960,1.92,3736.4,3735.9,0.002]
[1760233707262,1.92,3736.1,3735.9,0.002]
[1760233707688,2.3482,3736.1,3735.9,0.002]
[1760233707901,5.15845952,3736.0,3735.9,0.002]
[1760233709441,2.0536,3736.0,3735.9,0.002]
[1760233711131,2.0536,3736.0,3735.9,3.31233117]
[1760233711639,1.92,3736.0,3735.9,3.64634928]
[1760233711804,0.4282,3737.5,3736.2,0.6336]
[1760233712145,0.1336,3736.6,3736.5,3.30990135]
[1760233712468,0.1336,3737.2,3737.0,2.67594263]
[1760233712593,0.1336,3737.2,3736.9,0.6336]
[1760233712789,0.1336,3737.2,3737.1,3.30947166]
[1760233713291,0.1336,3737.7,3737.2,0.6336]
[1760233713853,1.92,3737.7,3736.2,0.6336]
[1760233713991,12.98703838,3737.8,3736.2,0.6336]
[1760233714190,2.67525683,3738.0,3737.2,0.6336]
[1760233714427,3.52288917,3738.2,3737.2,0.6336]
[1760233714428,0.84779969,3738.2,3737.2,0.6336]
[1760233714625,0.84779969,3738.2,3737.4,0.6336]
[1760233714626,2.67521669,3738.1,3737.4,0.6336]
[1760233714792,12.98703838,3737.8,3736.1,2.67658788]
[1760233714992,2.67601926,3736.9,3735.5,0.0711]
[1760233715193,4.59597203,3737.0,3736.1,2.67657314]
[1760233715392,4.59597203,3737.0,3735.5,0.0711]
[1760233715393,2.67610819,3736.8,3735.9,2.67868379]
[1760233715604,4.59620281,3736.7,3735.9,0.002]
[1760233715935,0.4282,3737.0,3735.9,0.002]
[1760233716136,1.92,3736.3,3735.9,0.002]
[1760233716442,2.67637671,3736.4,3735.9,0.002]
[1760233716808,2.67652401,3736.2,3735.9,0.002]
[1760233717014,2.67660606,3736.1,3735.9,0.002]
[1760233717193,4.59665952,3736.0,3735.9,0.002]
[1760233717399,5.02485952,3736.0,3735.9,0.002]
[1760233718600,18.0118979,3736.0,3735.9,0.002]
[1760233718796,4.59694613,3735.6,3735.5,0.002]
[1760233719229,5.02514613,3735.6,3735.5,0.002]
[1760233721850,4.59694613,3735.6,3735.5,0.002]
[1760233722002,5.05764613,3735.6,3735.5,0.002]
[1760233724203,2.67723281,3735.2,3735.1,0.002]
[1760233724438,2.67751954,3734.8,3734.7,0.002]
[1760233724648,4.59751954,3734.8,3734.7,0.002]
[1760233725015,5.05821954,3734.8,3734.7,0.002]
[1760233725627,2.6783326,3733.7,3732.3,0.0711]
[1760233725801,1.92,3734.0,3732.3,0.0711]
[1760233726001,1.92,3733.8,3732.5,2.67910637]
[1760233726205,1.92,3733.8,3732.6,2.95411776]
[1760233726206,4.82910303,3733.8,3732.6,2.95411776]
[1760233726406,0.2308,3733.8,3733.1,0.6336]
[1760233726649,0.2308,3733.8,3732.3,0.0711]
[1760233726952,2.67839962,3733.6,3732.9,0.6336]
[1760233727154,1.92,3733.4,3732.3,0.0711]
[1760233727318,0.2308,3733.8,3732.0,0.0711]
[1760233727657,1.92,3733.2,3732.0,0.0711]
[1760233727956,2.67842707,3733.6,3732.0,0.0711]
[1760233727957,1.92,3733.6,3732.9,0.6336]
[1760233728135,2.67819998,3733.9,3733.0,0.6336]
[1760233728340,1.92,3733.3,3732.6,0.6336]
[1760233728645,2.67859769,3733.3,3732.5,0.6336]
[1760233728846,2.67859769,3733.3,3732.5,3.31274088]
[1760233729014,0.2308,3733.9,3732.5,3.31274088]
[1760233729015,0.2308,3733.9,3733.4,0.6336]
[1760233729203,2.3807,3734.0,3733.4,0.6336]
[1760233729404,2.3807,3734.0,3733.3,2.67858867]
[1760233729607,2.3807,3734.0,3733.4,3.31211628]
[1760233730239,0.4607,3734.5,3732.7,0.6336]
[1760233730544,0.2308,3735.0,3733.4,0.6336]
[1760233730753,0.4607,3735.6,3733.6,0.6336]
[1760233730949,0.4607,3735.6,3733.8,0.6336]
[1760233731152,12.98703838,3735.9,3734.0,0.6336]
[1760233731328,0.4607,3736.2,3735.4,0.6336]
[1760233731523,0.4607,3736.2,3735.6,0.6336]
[1760233732051,1.92,3735.5,3732.6,0.6336]
[1760233732212,0.2308,3735.7,3733.8,0.6336]
[1760233732542,2.67702293,3735.5,3734.8,0.6336]
[1760233732843,3.36838175,3735.7,3734.7,0.6336]
[1760233733022,2.67708187,3735.5,3734.7,0.6336]
[1760233733546,1.92,3735.3,3734.7,0.6336]
[1760233733750,3.36840301,3735.7,3734.3,0.6336]
[1760233733751,0.2308,3735.7,3734.3,0.6336]
[1760233733927,4.59681832,3735.8,3735.0,0.6336]
[1760233734255,4.59681832,3735.8,3735.0,3.31096368]
[1760233734437,1.92,3735.8,3735.2,0.6336]
[1760233734771,2.67628398,3736.6,3735.3,0.6336]
[1760233734772,2.67624374,3736.6,3735.3,0.6336]
[1760233735096,12.98703838,3736.1,3734.6,2.67766194]
[1760233735361,0.1336,3735.1,3734.9,0.6336]
[1760233735562,0.1336,3735.1,3735.0,2.67737617]
[1760233735713,0.1336,3735.4,3735.1,0.6336]
[1760233735919,0.1336,3735.4,3735.1,3.31089449]
[1760233736460,1.92,3735.4,3734.6,0.6336]
[1760233736759,0.1336,3735.1,3734.5,0.6336]
[1760233736940,0.1336,3735.1,3735.0,0.6336]
[1760233737665,2.0536,3735.1,3735.0,0.6336]
[1760233737821,0.1336,3735.1,3733.7,0.0711]
[1760233738023,0.4673,3735.4,3733.7,0.0711]
[1760233738024,0.1336,3734.6,3734.5,3.3113319]
[1760233738357,1.92,3734.8,3734.1,2.67800625]
[1760233738557,4.59753205,3734.8,3733.2,2.74975158]
[1760233738758,2.67756026,3734.8,3733.9,2.67810462]
[1760233738914,1.92,3734.6,3734.1,0.6336]
[1760233739418,0.4673,3734.5,3733.9,3.31175022]
[1760233739753,2.67787508,3734.4,3733.6,2.67835002]
[1760233739955,0.4673,3734.9,3734.0,0.6356]
[1760233740155,2.3873,3734.9,3734.0,0.002]
[1760233740320,2.67802147,3734.1,3734.0,0.002]
[1760233740525,4.59802147,3734.1,3734.0,0.002]
[1760233740732,5.06532147,3734.1,3734.0,0.002]
[1760233741348,2.3873,3734.1,3734.0,0.002]
[1760233741552,1.92,3734.1,3734.0,0.002]
[1760233741879,1.919,3734.1,3734.0,0.002]
[1760233742963,3.14443406,3735.4,3734.4,0.6336]
[1760233743122,2.67736409,3735.1,3734.4,0.6336]
[1760233743324,3.14440081,3735.4,3734.4,2.67779671]
[1760233743579,2.67680282,3735.8,3734.5,0.6336]
[1760233743779,2.67759123,3734.7,3734.0,0.002]
[1760233744065,2.67802147,3734.1,3734.0,0.002]
[1760233744534,4.59830838,3733.7,3733.6,0.002]
[1760233744861,4.59830838,3733.7,3731.8,2.75071713]
[1760233744862,4.59859534,3733.3,3731.6,0.0751]
[1760233745026,2.67922916,3732.5,3731.0,2.68019029]
[1760233745228,1.92,3732.4,3731.1,2.96598846]
[1760233745435,1.92,3732.4,3731.6,2.67981425]
[1760233745762,1.92,3732.0,3731.1,0.28583903]
[1760233745940,0.2152,3731.9,3731.1,0.002]
[1760233746262,0.6825,3732.6,3731.1,0.002]
[1760233746500,2.6025,3732.6,3731.5,3.31347431]
[1760233746671,1.92,3732.4,3731.5,3.31347431]
[1760233747001,2.6025,3733.3,3731.5,0.59935772]
[1760233747198,2.6025,3733.3,3731.4,0.6336]
[1760233747400,0.4673,3733.3,3732.5,2.6791101]
[1760233747699,5.06591669,3733.3,3732.5,0.6336]
[1760233747904,2.67908321,3732.7,3732.0,0.6336]
[1760233748103,2.67910288,3732.6,3732.0,0.6336]
[1760233748302,0.1336,3732.2,3731.6,0.1336]
[1760233748804,0.1336,3732.2,3731.7,0.6336]
[1760233749004,0.1336,3732.2,3731.6,2.81340276]
[1760233749176,0.1336,3732.2,3732.1,0.6336]
[1760233750270,0.1336,3732.2,3731.7,3.31333624]
[1760233750473,0.1336,3732.2,3731.7,0.6336]
[1760233750671,2.67845266,3733.5,3731.7,0.6336]
[1760233750672,0.2152,3733.6,3732.6,0.6336]
[1760233751108,0.1336,3733.1,3733.0,0.6336]
[1760233751285,2.6780478,3734.1,3733.0,1.0282071]
[1760233751481,0.2152,3734.6,3733.0,0.7107]
[1760233751807,0.2152,3734.6,3733.1,0.6336]
[1760233751808,2.67853597,3733.4,3733.1,0.6336]
[1760233751971,2.67853597,3733.4,3731.9,0.0771]
[1760233751972,1.92,3733.3,3732.5,3.31272891]
[1760233752306,0.4673,3733.9,3732.0,0.6336]
[1760233752510,0.2152,3733.8,3732.2,0.6336]
[1760233752672,2.67838011,3733.6,3732.1,2.67945284]
[1760233752871,1.92,3732.4,3731.1,0.002]
[1760233753079,2.67915537,3732.6,3731.1,0.002]
[1760233753292,4.329025,3733.4,3731.6,0.6336]
[1760233753293,1.92,3732.4,3731.6,0.6336]
[1760233753605,1.92,3732.1,3731.1,0.002]
[1760233753767,2.67925107,3732.4,3731.2,2.68010291]
[1760233753970,4.59932926,3732.3,3731.4,2.67994973]
[1760233754173,1.92,3732.1,3731.3,2.94822672]
[1760233754406,1.92,3732.3,3731.1,0.002]
[1760233754585,2.67960617,3731.9,3731.2,0.6336]
[1760233754783,1.92,3731.9,3731.1,0.002]
[1760233755007,2.67968363,3731.8,3731.1,0.002]
[1760233755212,2.67960778,3731.9,3731.1,2.68216912]
[1760233755504,2.67972748,3731.8,3731.2,0.6336]
[1760233755898,1.92,3731.8,3731.2,0.6336]
[1760233756204,0.4673,3732.2,3731.3,0.6336]
[1760233756506,1.92,3732.0,3731.3,3.31357462]
[1760233756906,1.92,3732.4,3731.6,0.6336]
[1760233757214,2.67957419,3732.0,3731.1,0.6356]
[1760233757394,0.2152,3731.9,3731.1,0.002]
[1760233757570,2.6025,3731.9,3731.1,0.6356]
[1760233757774,2.67974896,3731.7,3731.1,0.6356]
[1760233757984,2.6025,3731.9,3731.3,0.002]
[1760233758184,3.14692841,3731.9,3731.3,0.002]
[1760233758387,0.001,3733.2,3731.4,0.7107]
[1760233758588,0.001,3733.2,3731.8,0.6336]
[1760233758786,0.001,3733.2,3731.5,0.0771]
[1760233758787,0.001,3733.2,3733.1,3.31233884]
[1760233759315,0.001,3733.2,3733.1,0.6336]
[1760233759814,0.001,3733.2,3732.5,0.6336]
[1760233759986,0.001,3733.2,3732.0,0.6336]
[1760233760187,0.001,3733.2,3732.9,0.6336]
[1760233760405,0.001,3733.2,3732.9,3.31248169]
[1760233760590,0.001,3733.2,3733.1,3.31233884]
[1760233761598,0.001,3733.2,3733.1,3.52303884]
[1760233762998,0.001,3733.2,3733.1,3.38943884]
[1760233763197,0.001,3733.2,3733.1,3.9962704]
[1760233763623,2.67696911,3737.0,3733.1,3.9962704]
[1760233763624,0.2217,3736.8,3733.2,0.6336]
[1760233763829,0.001,3737.0,3733.2,0.6336]
[1760233763830,0.4485,3737.0,3736.1,3.31018788]
[1760233764209,0.4485,3737.0,3736.1,0.6336]
[1760233764399,0.4485,3737.0,3736.1,3.31018788]
[1760233764599,0.4485,3736.6,3734.9,0.4485]
[1760233764825,0.4485,3736.6,3735.7,0.6336]
[1760233765032,0.4485,3736.6,3734.8,0.6336]
[1760233765198,0.001,3736.6,3735.0,0.6336]
[1760233765395,0.4485,3736.2,3735.3,0.6336]
[1760233765595,2.67668901,3736.0,3735.0,2.67734843]
[1760233765826,0.4485,3736.2,3735.1,0.6336]
[1760233766020,2.67658788,3736.1,3735.1,3.31084051]
[1760233766228,1.92,3736.0,3735.1,3.31084051]
[1760233766430,1.92,3735.6,3733.6,1.92]
[1760233766637,2.5892,3735.8,3734.3,0.6336]
[1760233766810,2.3675,3735.8,3734.9,2.6773786]
[1760233766998,0.001,3736.2,3735.0,0.6336]
[1760233767200,0.001,3736.2,3735.5,0.6336]
[1760233767400,0.001,3736.2,3735.2,0.6336]
[1760233767627,0.001,3736.2,3735.0,0.6336]
[1760233768010,0.001,3736.2,3735.9,0.6336]
[1760233768509,0.001,3736.2,3735.8,3.31038536]
[1760233768717,0.001,3736.2,3735.6,3.31049991]
[1760233768924,0.001,3736.2,3735.6,0.6336]
[1760233769125,0.001,3736.2,3735.0,0.27525379]
[1760233769126,0.001,3736.2,3735.9,0.6336]
[1760233769919,0.001,3736.2,3736.1,3.31018788]
[1760233770852,0.001,3736.2,3736.1,3.38528788]
[1760233771054,0.001,3736.2,3736.1,3.9914859]
[1760233773057,1e-08,3737.0,3736.9,2.67601487]
[1760233773260,1e-08,3737.0,3736.9,3.30961487]
[1760233773421,1e-08,3737.0,3736.9,3.38471487]
[1760233773617,1e-08,3737.0,3736.9,0.6336]
[1760233773955,1e-08,3737.0,3736.9,3.30961487]
[1760233776353,1e-08,3737.0,3736.9,3.38471487]
[1760233777628,0.4475,3739.7,3738.9,0.6336]
[1760233777843,0.4475,3739.7,3738.3,0.6336]
[1760233778063,0.4475,3739.7,3739.1,0.6336]
[1760233778263,0.001,3740.2,3739.1,0.6336]
[1760233778566,0.001,3740.2,3739.4,0.6336]
[1760233778942,2.88892653,3740.1,3739.4,0.6336]
[1760233779146,2.67380072,3740.0,3739.4,0.6336]
[1760233779339,1.92,3739.9,3739.4,0.6336]
[1760233779652,0.4475,3739.7,3738.0,0.80481925]
[1760233779834,0.4475,3739.7,3739.1,0.6336]
[1760233779835,2.3675,3739.7,3739.1,0.6336]
[1760233780189,2.3675,3739.7,3739.0,0.6336]
[1760233780363,1.92,3739.3,3738.6,0.6336]
[1760233780729,0.4475,3739.7,3737.7,0.87999051]
[1760233781024,0.4475,3739.6,3737.9,0.6336]
[1760233781225,1.92,3739.4,3738.6,0.6336]
[1760233781445,1.92,3739.4,3738.5,0.6336]
[1760233781653,1.92,3739.5,3738.5,3.30845729]
[1760233781863,1.92,3739.5,3738.6,2.67479805]
[1760233781864,2.67416729,3739.5,3738.6,2.67479805]
[1760233782365,0.4475,3739.6,3739.1,0.6336]
[1760233782533,0.001,3739.8,3739.1,0.6336]
[1760233782860,0.001,3739.8,3738.6,0.6336]
[1760233783037,0.1336,3739.2,3739.0,0.6336]
[1760233783241,0.1336,3739.2,3739.0,3.30810762]
[1760233783447,0.1336,3739.2,3738.9,2.67451932]
[1760233783765,0.1336,3739.2,3739.1,0.6336]
[1760233784192,0.1336,3739.2,3738.8,2.67458439]
[1760233784193,0.1336,3739.2,3738.8,3.30825496]
[1760233784694,0.1336,3739.2,3739.1,0.6336]
[1760233784994,0.1336,3739.2,3738.9,3.30811509]
[1760233785216,0.1336,3739.2,3738.9,0.6336]
[1760233785374,0.1336,3739.2,3738.9,3.3081723]
[1760233785694,0.1336,3739.2,3738.8,0.6336]
[1760233786655,0.1336,3739.2,3738.8,2.67465496]
[1760233786908,0.1336,3739.2,3738.9,0.6336]
[1760233787193,2.0536,3738.8,3738.2,0.1336]
[1760233787372,0.1336,3738.4,3738.1,2.67514948]
[1760233787896,0.1336,3738.4,3737.7,0.1336]
[1760233788078,0.1336,3738.9,3738.5,2.6748696]
[1760233788283,0.1336,3738.9,3738.8,3.30825496]
[1760233788765,0.1336,3739.3,3739.2,3.30789916]
[1760233789374,0.1336,3739.3,3739.2,0.6336]
[1760233789864,0.1336,3739.3,3738.1,0.6336]
[1760233790059,0.1336,3738.9,3738.4,0.6336]
[1760233790293,0.1336,3738.9,3738.8,2.67465496]
[1760233790591,0.1336,3739.4,3739.2,0.6336]
[1760233790791,0.1336,3739.4,3739.2,3.30796683]
[1760233790981,0.1336,3739.4,3739.3,3.30789732]
[1760233791693,0.1336,3739.7,3739.4,0.6336]
[1760233791892,0.1336,3739.7,3739.6,0.6336]
[1760233792694,0.001,3739.8,3739.7,2.67401128]
[1760233793178,0.001,3739.8,3739.7,3.30761128]